bitfinex/quotes_ETHUSD_20240722
["timestamp","ask_amount","ask_price","bid_price","bid_amount"]
[1721630390998,0.575319,3476.3,3475.5,2.87727]
[1721630391202,0.575319,3476.3,3475.6,2.87718]
[1721630391507,2.87622,3476.8,3475.7,2.87711]
[1721630391807,2.87639,3476.6,3475.0,0.55]
[1721630391956,2.87639,3476.6,3475.4,2.87733]
[1721630392164,20.34098855,3477.2,3475.2,2.87753]
[1721630392357,2.87675,3476.2,3475.3,6.30486]
[1721630392593,2.87672,3476.2,3475.4,0.55]
[1721630392810,10.05117885,3477.1,3474.9,3.0]
[1721630392964,10.05117885,3477.1,3474.5,5.2854]
[1721630392965,2.87688,3476.0,3474.5,5.2854]
[1721630393165,2.87703,3475.8,3475.0,2.87769]
[1721630393497,2.87662,3476.3,3475.1,2.87761]
[1721630393716,2.87662,3476.3,3475.4,2.87735]
[1721630393717,0.287662,3476.2,3475.4,2.87735]
[1721630393862,0.287662,3476.2,3475.3,2.87743]
[1721630394061,7.48,3476.9,3475.4,3.42736]
[1721630394361,2.87662,3476.3,3475.4,3.42736]
[1721630395598,2.87671,3476.2,3475.4,0.55]
[1721630395796,2.87648,3476.5,3475.4,3.4273]
[1721630395996,2.87671,3476.2,3475.4,3.4273]
[1721630396175,3.452029,3476.2,3475.4,3.4273]
[1721630396494,2.87688,3476.0,3474.5,5.2854]
[1721630396713,2.87695,3475.9,3475.0,2.87763]
[1721630396858,2.87688,3476.0,3475.1,3.42755]
[1721630397063,0.575319,3476.2,3475.1,0.55]
[1721630397371,2.87704,3475.8,3475.0,3.42769]
[1721630397558,2.87704,3475.8,3475.0,0.55]
[1721630397760,2.87704,3475.8,3474.9,2.87771]
[1721630397993,2.87704,3475.8,3475.0,0.55]
[1721630398410,2.2737,3476.3,3475.0,0.55]
[1721630398411,2.87671,3476.2,3475.0,0.55]
[1721630398595,3.10408,3476.2,3475.3,2.87744]
[1721630398901,3.10408,3476.2,3475.0,3.42769]
[1721630398902,0.22737,3476.2,3475.4,2.87736]
[1721630399098,2.87647,3476.5,3475.7,2.8771]
[1721630399617,2.3657,3476.9,3475.6,2.87718]
[1721630399618,5.24182,3476.9,3475.6,2.87718]
[1721630399903,2.87646,3476.5,3475.7,2.87705]
[1721630400206,2.87639,3476.6,3475.8,2.87703]
[1721630400412,0.57526,3476.5,3475.8,2.87703]
[1721630400612,2.8764,3476.6,3475.7,2.8771]
[1721630400764,2.87621,3476.8,3475.7,2.8771]
[1721630400968,5.24183,3476.9,3475.6,2.87719]
[1721630401171,2.87637,3476.6,3475.8,2.87703]
[1721630401367,2.87633,3476.7,3475.9,2.87694]
[1721630401573,3.400573,3476.6,3475.8,2.87703]
[1721630401799,0.524203,3476.6,3475.5,0.55]
[1721630402012,0.524203,3476.6,3475.3,0.55]
[1721630402183,0.524203,3476.6,3475.8,2.87696]
[1721630402507,2.87676,3476.2,3475.4,2.87733]
[1721630402712,0.287676,3476.1,3475.3,0.55]
[1721630402916,2.87676,3476.2,3475.3,2.87737]
[1721630403130,2.87676,3476.2,3475.4,0.55]
[1721630403405,2.87662,3476.3,3475.4,2.87736]
[1721630403772,2.87679,3476.1,3475.2,3.0]
[1721630403967,0.524203,3476.6,3475.4,2.8773]
[1721630403968,2.87664,3476.3,3475.4,2.8773]
[1721630404173,2.87664,3476.3,3475.2,2.87753]
[1721630404174,0.287664,3476.2,3475.5,2.87727]
[1721630404797,2.87656,3476.4,3475.6,2.87719]
[1721630404982,2.87656,3476.4,3474.8,5.87781]
[1721630404983,2.87688,3476.0,3475.0,2.87761]
[1721630405199,2.87688,3476.0,3475.1,6.42759]
[1721630405397,2.87701,3475.9,3475.1,0.55]
[1721630405621,3.400623,3476.6,3474.8,2.87784]
[1721630405622,2.87689,3476.0,3474.8,2.87785]
[1721630405772,2.8773,3475.5,3474.9,3.0]
[1721630405974,2.87738,3475.4,3474.3,2.87827]
[1721630406173,2.3002,3475.8,3473.7,2.87876]
[1721630406174,2.87773,3475.0,3473.7,2.87876]
[1721630406416,2.87813,3474.5,3473.6,3.221693]
[1721630406570,2.87814,3474.5,3473.6,3.221693]
[1721630406772,0.575609,3474.5,3473.4,2.87895]
[1721630407085,2.87819,3474.4,3473.5,2.87891]
[1721630408096,2.87819,3474.4,3473.6,2.87885]
[1721630408298,2.87787,3474.8,3472.9,2.87938]
[1721630408511,2.87796,3474.7,3473.8,2.87862]
[1721630408677,2.87804,3474.6,3473.8,2.87862]
[1721630408888,3.692291,3474.6,3473.8,2.87862]
[1721630409089,3.692291,3474.6,3473.5,2.87887]
[1721630409283,0.814251,3474.6,3473.9,2.87854]
[1721630409480,0.814251,3474.6,3473.8,2.87868]
[1721630409712,0.814251,3474.6,3472.7,9.20356]
[1721630409875,2.3866,3474.9,3473.1,2.87926]
[1721630409876,2.87844,3474.1,3473.1,2.87926]
[1721630410084,2.87837,3474.2,3472.9,1.162546]
[1721630410373,2.87837,3474.2,3472.7,3.295]
[1721630410374,2.87868,3473.9,3473.0,2.87928]
[1721630410572,2.8787,3473.8,3473.0,2.87928]
[1721630410773,5.4156,3474.9,3472.2,3.295]
[1721630410774,2.87878,3473.7,3472.5,6.11136926]
[1721630410975,2.87956,3472.8,3472.5,0.35163926]
[1721630411175,2.87888,3473.6,3472.5,0.35163926]
[1721630411477,2.87931,3473.1,3472.5,0.35163926]
[1721630411822,2.87913,3473.3,3472.5,0.35163926]
[1721630411823,2.87922,3473.2,3472.5,0.35163926]
[1721630412024,0.287888,3473.5,3472.5,0.35163926]
[1721630412185,2.4172,3473.9,3472.9,2.87942]
[1721630412386,2.4172,3473.9,3472.8,2.87951]
[1721630412589,0.529579,3473.8,3472.8,2.87951]
[1721630412827,0.529579,3473.8,3473.1,2.87925]
[1721630413129,2.4172,3473.9,3472.8,2.87951]
[1721630413288,2.87877,3473.7,3472.8,2.87951]
[1721630413816,5.29583,3473.9,3472.9,2.87941]
[1721630413985,2.4172,3473.9,3472.8,2.87951]
[1721630414186,2.4172,3473.9,3473.0,2.87927]
[1721630414523,3.23461,3473.9,3473.1,2.87926]
[1721630414819,2.87877,3473.7,3472.8,2.87949]
[1721630415004,2.87824,3474.4,3472.9,0.05758251]
[1721630415176,7.48,3474.7,3473.7,2.8787]
[1721630415177,2.4645,3474.6,3473.7,2.8787]
[1721630415382,2.4645,3474.6,3473.8,2.87866]
[1721630415817,3.286532,3474.6,3473.8,2.87866]
[1721630416222,6.164562,3474.6,3473.0,0.55]
[1721630416379,6.164562,3474.6,3472.6,3.295]
[1721630416380,2.87846,3474.1,3473.1,2.87924]
[1721630416580,2.8783,3474.3,3473.1,2.87924]
[1721630416781,2.8783,3474.3,3473.2,2.87918]
[1721630417014,2.4645,3474.6,3473.5,2.8789]
[1721630417214,5.34256,3474.6,3473.4,2.87899]
[1721630417415,5.34256,3474.6,3473.5,2.8789]
[1721630418185,2.87813,3474.5,3473.5,2.8789]
[1721630418382,2.87819,3474.4,3473.3,2.8791]
[1721630418720,2.87813,3474.5,3473.2,2.87917]
[1721630419017,2.87813,3474.5,3473.4,2.879]
[1721630419219,2.87827,3474.3,3473.0,2.87934]
[1721630419449,2.87827,3474.3,3473.2,2.87912]
[1721630419609,2.87811,3474.5,3473.1,3.42926]
[1721630419918,2.4645,3474.6,3472.7,2.87959]
[1721630420119,2.87871,3473.8,3472.8,2.87945]
[1721630420294,2.87845,3474.1,3472.8,2.87945]
[1721630420491,2.87845,3474.1,3473.1,2.87925]
[1721630420693,2.87854,3474.0,3472.9,2.8794]
[1721630421190,2.87817,3474.5,3472.6,2.87968]
[1721630421396,2.4645,3474.6,3472.5,3.23137926]
[1721630421731,2.87852,3474.0,3472.6,2.87965]
[1721630421897,2.3651,3474.2,3472.9,2.87942]
[1721630421898,5.2435,3474.2,3472.9,2.87942]
[1721630422090,5.2435,3474.2,3472.5,0.35163926]
[1721630422091,2.3651,3474.2,3472.8,2.87945]
[1721630422292,2.3651,3474.2,3473.2,2.87918]
[1721630422493,2.3651,3474.2,3472.6,6.324]
[1721630422694,2.3651,3474.2,3473.1,2.87926]
[1721630422994,2.3651,3474.2,3473.2,2.87915]
[1721630423244,2.3651,3474.2,3473.4,2.87901]
[1721630423440,2.3651,3474.2,3472.7,0.55]
[1721630423441,5.36017,3474.7,3473.3,2.8791]
[1721630423755,0.823804,3474.6,3473.3,2.8791]
[1721630423928,2.87836,3474.2,3473.2,2.87918]
[1721630424133,2.87836,3474.2,3473.1,2.87926]
[1721630424513,2.87836,3474.2,3472.6,2.87968]
[1721630424840,2.87836,3474.2,3472.9,2.87942]
[1721630425172,5.36022,3474.7,3472.8,2.8795]
[1721630425173,2.8787,3473.8,3472.8,2.8795]
[1721630425350,2.8787,3473.8,3472.6,2.87968]
[1721630425351,0.28787,3473.7,3472.6,2.87968]
[1721630426034,0.28787,3473.7,3472.7,2.8796]
[1721630426233,0.28787,3473.7,3472.5,3.35163926]
[1721630426432,2.4822,3474.7,3472.5,3.35163926]
[1721630426433,5.36019,3474.7,3472.9,2.87943]
[1721630426619,3.029,3474.5,3472.9,2.87943]
[1721630426828,2.87844,3474.1,3472.8,2.87952]
[1721630427129,2.87844,3474.1,3472.9,2.87943]
[1721630427332,2.8786,3474.0,3472.9,2.87943]
[1721630427530,2.8787,3473.8,3472.7,2.87955]
[1721630427958,2.8787,3473.8,3472.8,2.87949]
[1721630428122,0.575704,3473.9,3472.9,2.87942]
[1721630428323,0.575704,3473.9,3472.6,2.87967]
[1721630428523,2.87844,3474.1,3472.6,2.87967]
[1721630428524,5.19289,3473.8,3472.8,2.87951]
[1721630428738,2.3142,3473.8,3472.9,2.8794]
[1721630428957,2.3142,3473.8,3472.8,2.87951]
[1721630429162,2.3142,3473.8,3472.9,2.87942]
[1721630429661,2.3142,3473.8,3473.0,2.87934]
[1721630429964,2.833479,3473.8,3473.1,2.87926]
[1721630430142,2.833479,3473.8,3473.2,2.87912]
[1721630430346,2.3142,3473.8,3472.9,2.87942]
[1721630430565,2.3142,3473.8,3473.1,2.87924]
[1721630431544,2.3142,3473.8,3473.2,2.87918]
[1721630431884,5.21018,3474.3,3473.2,2.87918]
[1721630432034,2.87838,3474.2,3473.3,2.87908]
[1721630432230,3.399468,3474.1,3473.1,2.87926]
[1721630432437,2.87862,3473.9,3472.9,2.87943]
[1721630432633,2.87873,3473.8,3472.5,0.35163926]
[1721630432863,2.87873,3473.8,3472.7,2.87959]
[1721630433042,2.87873,3473.8,3472.8,2.87951]
[1721630433246,0.575726,3473.7,3472.5,3.23133926]
[1721630433570,2.87837,3474.2,3473.1,2.87926]
[1721630433980,2.87863,3473.9,3472.9,2.87942]
[1721630434269,2.87844,3474.1,3472.9,2.87942]
[1721630434657,5.21018,3474.3,3472.7,2.8796]
[1721630434658,3.029,3474.2,3472.7,2.8796]
[1721630434857,3.029,3474.2,3472.9,2.87942]
[1721630434858,2.87861,3473.9,3472.9,2.87942]
[1721630435049,3.029,3474.2,3472.8,2.8795]
[1721630435050,3.454395,3473.8,3472.8,2.8795]
[1721630435432,0.575705,3473.8,3472.9,2.87942]
[1721630435652,0.575705,3473.8,3472.5,0.35163926]
[1721630435653,5.21021,3474.3,3473.3,2.87909]
[1721630436055,2.3319,3474.3,3473.1,2.87927]
[1721630436264,2.87854,3474.0,3472.9,2.87943]
[1721630436434,2.87854,3474.0,3472.7,2.87958]
[1721630436435,2.87875,3473.8,3472.7,2.87958]
[1721630437475,2.87892,3473.6,3472.5,3.23139926]
[1721630437633,0.287875,3473.7,3472.5,3.23139926]
[1721630437830,3.166695,3473.7,3472.6,2.87967]
[1721630438660,2.87888,3473.6,3472.6,2.87967]
[1721630438837,3.4834255,3473.6,3472.6,2.87967]
[1721630439265,3.4834255,3473.6,3472.5,0.35163926]
[1721630439266,2.87911,3473.3,3472.5,0.35163926]
[1721630439539,2.87945,3472.9,3472.5,0.35163926]
[1721630439765,2.2847,3472.6,3472.5,0.35163926]
[1721630439932,5.16438,3472.6,3472.5,0.35163926]
[1721630440136,8.04406,3472.6,3472.5,0.35163926]
[1721630440334,5.16438,3472.6,3472.5,0.35163926]
[1721630441245,2.2847,3472.6,3472.5,0.35163926]
[1721630441447,5.680802,3472.6,3472.5,0.35163926]
[1721630441648,8.560482,3472.6,3472.5,0.35163926]
[1721630442073,5.680802,3472.6,3472.5,0.35163926]
[1721630442281,8.560482,3472.6,3472.5,0.35163926]
[1721630442448,11.589482,3472.6,3472.5,0.35163926]
[1721630442662,14.469162,3472.6,3472.5,0.35163926]
[1721630443750,14.469162,3472.6,3471.9,0.2286]
[1721630443751,5.76036,3472.0,3471.9,0.2286]
[1721630443959,3.759116,3472.0,3471.9,0.2286]
[1721630444342,0.878936,3472.0,3471.9,0.2286]
[1721630444638,2.87986,3472.4,3471.9,0.2286]
[1721630444851,2.801122,3472.6,3471.9,3.10882]
[1721630445084,2.2847,3472.6,3472.1,2.88008]
[1721630445284,2.2847,3472.6,3471.9,0.2286]
[1721630445285,2.2847,3472.6,3472.0,2.88017]
[1721630445442,2.2847,3472.6,3471.9,3.10886]
[1721630446053,2.2847,3472.6,3471.9,0.2286]
[1721630446785,2.64041653,3473.1,3471.9,0.2286]
[1721630447091,0.29991653,3473.1,3471.9,0.2286]
[1721630447255,2.3405,3473.6,3472.4,2.87983]
[1721630447464,2.3405,3473.6,3471.9,0.2286]
[1721630447465,3.1417775,3473.5,3472.1,2.88009]
[1721630447761,2.87911,3473.3,3472.2,2.87995]
[1721630447946,2.87921,3473.2,3472.0,2.88014]
[1721630448295,3.2918375,3473.5,3471.9,0.2286]
[1721630448476,2.4583,3472.8,3471.9,0.2286]
[1721630448646,0.533774,3472.7,3471.9,0.2286]
[1721630449285,0.533774,3472.7,3471.9,3.10886]
[1721630449588,0.533774,3472.7,3471.9,0.2286]
[1721630449888,2.87969,3472.6,3471.9,0.2286]
[1721630450256,0.533774,3472.7,3471.9,0.2286]
[1721630450257,3.413384,3472.7,3471.9,0.2286]
[1721630450458,2.88003,3472.2,3471.9,0.2286]
[1721630450843,2.87985,3472.4,3471.9,0.2286]
[1721630451047,3.4668484,3472.6,3471.9,0.2286]
[1721630451048,0.5871684,3472.6,3471.9,0.2286]
[1721630451480,2.87985,3472.5,3471.9,0.2286]
[1721630451682,2.87999,3472.3,3471.9,0.2286]
[1721630452007,2.88003,3472.2,3471.9,0.2286]
[1721630452582,2.8801,3472.1,3471.9,0.2286]
[1721630452784,3.029,3472.7,3471.9,0.2286]
[1721630452992,2.87979,3472.5,3471.9,0.2286]
[1721630453370,2.88005,3472.2,3471.9,0.2286]
[1721630453755,3.865687,3472.6,3471.9,0.2286]
[1721630453756,3.716377,3472.6,3471.9,0.2286]
[1721630454063,0.836687,3472.6,3471.9,0.2286]
[1721630454282,5.33783,3472.8,3471.9,0.2286]
[1721630454283,2.88009,3472.2,3471.9,0.2286]
[1721630454635,0.6174517,3472.5,3471.9,0.2286]
[1721630454929,2.4583,3472.8,3471.9,0.2286]
[1721630455071,2.4583,3472.8,3472.2,2.88001]
[1721630455272,2.4583,3472.8,3472.3,2.87991]
[1721630455628,2.4195,3473.4,3471.9,0.2286]
[1721630455912,0.29987154,3473.8,3471.9,0.2286]
[1721630455913,0.29987154,3473.8,3472.8,2.87951]
[1721630456075,2.87887,3473.6,3472.6,2.87968]
[1721630456270,2.87887,3473.6,3471.9,0.2286]
[1721630456271,2.87894,3473.5,3472.3,2.87992]
[1721630456634,2.87894,3473.5,3472.0,2.88016]
[1721630456635,5.3609,3473.5,3472.0,2.88016]
[1721630456925,2.87944,3472.9,3471.9,3.1088]
[1721630457413,2.87961,3472.7,3471.9,0.2286]
[1721630457792,2.87954,3472.8,3471.9,0.2286]
[1721630458098,0.287954,3472.7,3471.9,3.10884]
[1721630458300,0.287954,3472.7,3471.9,0.2286]
[1721630458814,0.287954,3472.7,3472.0,2.88012]
[1721630458969,5.21092,3473.5,3471.9,0.2286]
[1721630459174,2.3319,3473.5,3471.9,0.2286]
[1721630459413,2.3319,3473.5,3472.7,2.87958]
[1721630459987,2.3319,3473.5,3471.9,0.2286]
[1721630459988,0.575748,3473.6,3472.2,2.87995]
[1721630460318,0.575748,3473.6,3472.5,2.87976]
[1721630460612,0.575748,3473.6,3472.3,0.533915]
[1721630460613,2.2884,3473.9,3472.9,2.87942]
[1721630460857,2.2884,3473.9,3472.1,3.0]
[1721630460858,5.3174,3473.9,3472.1,3.0]
[1721630461016,5.3174,3473.9,3471.4,0.8968139]
[1721630461017,4.043,3472.7,3470.9,2.09940017]
[1721630461225,4.043,3472.7,3470.3,0.005]
[1721630461226,4.043,3472.7,3467.8,0.60188412]
[1721630461227,2.36443559,3470.7,3467.8,0.60188412]
[1721630461551,2.36443559,3470.7,3467.7,1.20268177]
[1721630461552,3.029,3470.0,3467.7,0.29985558]
[1721630461963,2.2876,3470.4,3467.5,0.60188412]
[1721630461964,2.88242,3469.4,3467.5,2.8839]
[1721630462246,11.574782,3469.3,3467.3,0.1513572]
[1721630462459,5.91194,3468.7,3467.3,0.1513572]
[1721630462642,0.58827825,3469.1,3467.3,0.1513572]
[1721630462803,2.88268,3469.0,3467.5,2.88391]
[1721630463310,2.88305,3468.6,3467.3,0.1513572]
[1721630463521,2.88277,3468.9,3467.3,0.1513572]
[1721630463720,2.780942,3469.3,3467.3,3.0354172]
[1721630463925,2.88292,3468.7,3467.4,0.30354172]
[1721630464111,2.8827,3469.0,3467.3,0.1513572]
[1721630464441,2.88292,3468.7,3467.3,0.1513572]
[1721630464657,2.88302,3468.6,3467.4,2.88397]
[1721630464804,2.88312,3468.5,3467.3,0.1513572]
[1721630465359,2.88341,3468.2,3467.3,0.1513572]
[1721630465507,2.88359,3467.9,3467.3,0.1513572]
[1721630465711,2.88341,3468.2,3467.3,0.1513572]
[1721630465956,3.029,3469.0,3467.3,0.1513572]
[1721630465957,2.88377,3467.7,3467.3,0.1513572]
[1721630466108,2.88376,3467.7,3467.3,0.1513572]
[1721630466308,2.8831,3468.5,3467.3,0.1513572]
[1721630466309,5.768,3467.4,3467.3,0.1513572]
[1721630466567,5.78504909,3467.4,3467.3,0.1513572]
[1721630466707,2.90104909,3467.4,3467.3,0.1513572]
[1721630466910,5.78504909,3467.4,3467.3,0.1513572]
[1721630467377,5.78504909,3467.4,3463.9,2.88689]
[1721630467378,2.88492,3466.3,3463.9,2.88689]
[1721630467529,3.0,3465.7,3463.4,2.8873]
[1721630467707,3.0,3465.7,3462.9,0.0554963]
[1721630467708,4.07139018,3465.6,3463.6,2.88714]
[1721630467905,0.01739018,3465.5,3463.6,0.05773212]
[1721630468209,0.01739018,3465.5,3462.9,0.0554963]
[1721630468445,2.88573,3465.4,3463.0,2.88762]
[1721630468753,0.71330768,3465.3,3463.9,0.27632718]
[1721630468911,0.01767406,3465.2,3463.9,0.27632718]
[1721630469312,0.01767406,3465.2,3464.0,2.88681]
[1721630469616,0.01767406,3465.2,3462.9,0.0554963]
[1721630469617,2.88618,3464.8,3463.5,2.88722]
[1721630469814,2.39997406,3464.7,3463.3,2.88741]
[1721630470114,0.01767406,3464.6,3463.7,2.88708]
[1721630470346,0.01767406,3464.6,3463.7,2.88707]
[1721630470554,0.01767406,3464.6,3463.9,0.05773451]
[1721630470763,0.01767406,3464.6,3464.4,5.77296]
[1721630470914,0.01767406,3464.6,3464.5,0.05771349]
[1721630471117,0.01767406,3464.6,3464.4,8.71716897]
[1721630471354,3.46266491,3467.3,3465.2,2.88582]
[1721630471521,0.30018733,3466.4,3464.9,2.88607]
[1721630471865,0.57850491,3467.3,3466.4,2.88482]
[1721630472039,2.88271,3469.0,3465.6,2.88548]
[1721630472040,0.30011606,3467.1,3466.6,2.88465]
[1721630472411,2.4002,3468.3,3466.6,2.88465]
[1721630472412,2.88369,3467.8,3466.6,2.88465]
[1721630472646,3.47222099,3467.7,3466.5,2.88473]
[1721630472854,2.8839,3467.6,3466.1,2.88504]
[1721630473208,0.58847099,3467.7,3466.0,2.88516]
[1721630473209,2.88402,3467.4,3466.0,2.88516]
[1721630473422,3.47226099,3467.7,3465.3,3.0]
[1721630473656,2.88384,3467.6,3465.3,3.0]
[1721630473829,0.3472311,3467.5,3465.8,2.88533]
[1721630474035,0.3472311,3467.5,3465.4,0.820691]
[1721630474036,2.88417,3467.2,3466.0,2.88517]
[1721630474246,0.29510199,3467.7,3465.4,0.820691]
[1721630474448,0.29510199,3467.7,3465.4,0.87838736]
[1721630474449,3.17887199,3467.7,3465.4,0.87838736]
[1721630474654,0.29510199,3467.7,3466.8,2.8845]
[1721630475017,0.29510199,3467.7,3466.1,2.88502]
[1721630475219,0.29510199,3467.7,3467.0,2.88428]
[1721630475420,0.29510199,3467.7,3467.4,2.88396]
[1721630475674,2.88275,3468.9,3467.1,2.88418]
[1721630475822,2.88325,3468.3,3466.3,3.0]
[1721630476021,2.88292,3468.8,3466.3,35.0]
[1721630476236,2.3432,3469.1,3466.2,3.173482]
[1721630476237,3.171262,3468.7,3466.2,0.288502]
[1721630476439,0.288292,3468.7,3466.2,0.346181]
[1721630476725,2.3432,3469.1,3466.2,0.346181]
[1721630476726,2.3432,3469.1,3467.3,2.88407]
[1721630476953,5.22583,3469.1,3467.3,2.88407]
[1721630477153,2.88267,3469.0,3466.9,2.88441]
[1721630477667,2.88267,3469.0,3467.7,2.88375]
[1721630477969,2.88267,3469.0,3466.5,2.88473]
[1721630477970,3.029,3467.6,3463.8,2.7632718]
[1721630478273,2.88459,3466.7,3465.2,2.88579]
[1721630478476,5.91339,3467.0,3465.4,2.88566]
[1721630478646,5.6358037,3467.7,3466.0,2.88516]
[1721630478647,2.88407,3467.4,3466.0,2.88516]
[1721630478969,0.288407,3467.3,3466.0,2.88516]
[1721630479175,0.288407,3467.3,3465.9,2.88522]
[1721630479343,2.88428,3467.1,3465.6,2.88546]
[1721630479540,2.88428,3467.1,3465.0,2.94368942]
[1721630479541,3.172497,3467.3,3465.3,2.88568]
[1721630479770,3.172497,3467.3,3465.0,2.94368942]
[1721630479771,2.88419,3467.2,3465.8,2.88531]
[1721630480076,3.2015097,3467.1,3465.3,2.8857]
[1721630480269,3.2015097,3467.1,3465.0,0.05769942]
[1721630480270,2.88491,3466.4,3465.0,2.88599]
[1721630480566,2.88435,3467.0,3465.0,2.88599]
[1721630480567,2.88464,3466.7,3465.0,2.88599]
[1721630480751,2.88468,3466.6,3465.4,2.88562]
[1721630481066,0.3172597,3467.1,3466.0,2.88509]
[1721630481269,0.3172597,3467.1,3465.2,2.88582]
[1721630481270,0.32013397,3467.0,3465.8,2.88532]
[1721630481428,0.32013397,3467.0,3465.7,2.88539]
[1721630481629,3.20448397,3467.0,3465.7,2.88539]
[1721630481843,2.8845,3466.8,3465.6,2.88542]
[1721630482169,0.32013397,3467.0,3466.3,2.88487]
[1721630482327,2.88346,3468.1,3466.8,2.88445]
[1721630482530,3.029,3468.3,3466.3,2.88489]
[1721630482733,3.029,3468.3,3466.9,2.88436]
[1721630482734,5.91227,3468.3,3466.9,2.88436]
[1721630482951,2.88319,3468.4,3466.7,2.88457]
[1721630483151,2.88319,3468.4,3467.0,2.88432]
[1721630483557,2.88343,3468.1,3466.7,2.88452]
[1721630483777,3.029,3468.1,3466.3,2.88485]
[1721630483941,3.029,3468.1,3466.7,2.88458]
[1721630483942,2.8835,3468.1,3466.7,2.88458]
[1721630484273,0.532419,3468.3,3466.4,2.88483]
[1721630484274,2.88385,3467.6,3466.4,2.88483]
[1721630484471,2.8834,3468.2,3466.5,2.88474]
[1721630484678,2.88374,3467.8,3465.9,0.05768349]
[1721630484882,0.35009894,3468.1,3465.9,0.05768349]
[1721630485047,2.441,3468.5,3465.9,0.05768349]
[1721630485048,2.441,3468.5,3466.6,2.88466]
[1721630485372,2.441,3468.5,3467.6,2.88383]
[1721630485671,2.441,3468.5,3466.3,2.8849]
[1721630485672,2.441,3468.5,3466.8,0.05766999]
[1721630485891,2.441,3468.5,3467.2,2.88416]
[1721630486178,2.441,3468.5,3467.3,2.88406]
[1721630486358,0.532402,3468.4,3467.1,2.88425]
[1721630486563,0.532402,3468.4,3467.2,2.88416]
[1721630486748,0.532402,3468.4,3467.3,2.88408]
[1721630487101,3.415582,3468.4,3467.1,2.88425]
[1721630487228,3.415582,3468.4,3467.1,2.88418]
[1721630487429,0.532402,3468.4,3467.5,2.8839]
[1721630487685,0.532402,3468.4,3467.6,2.88383]
[1721630487965,0.532402,3468.4,3467.4,2.88393]
[1721630488178,2.8827,3469.0,3467.5,2.88392]
[1721630488345,5.3077,3469.2,3467.5,2.88389]
[1721630488545,2.88287,3468.8,3467.3,2.88408]
[1721630488854,5.16121,3469.2,3467.7,2.88374]
[1721630489064,5.16121,3469.2,3467.2,2.88411]
[1721630489065,5.16121,3469.2,3467.8,2.88359]
[1721630489267,5.16121,3469.2,3468.3,2.88318]
[1721630489268,0.516121,3469.1,3468.3,2.88318]
[1721630489569,2.2787,3469.2,3468.2,2.88332]
[1721630489735,2.2787,3469.2,3468.4,2.88316]
[1721630490252,2.2787,3469.2,3468.0,2.88348]
[1721630490451,2.2787,3469.2,3467.9,2.8835]
[1721630490452,5.16121,3469.2,3467.9,2.8835]
[1721630490793,5.16121,3469.2,3468.1,2.88339]
[1721630491077,2.88129,3470.7,3467.1,35.0]
[1721630491078,2.4217,3470.0,3468.0,2.88342]
[1721630491302,2.4217,3470.0,3468.0,0.05764926]
[1721630491438,2.4217,3470.0,3468.0,2.88347]
[1721630491758,2.88209,3469.8,3468.7,2.88292]
[1721630491934,3.412539,3469.7,3467.1,35.0]
[1721630492133,3.412539,3469.7,3468.2,2.88333]
[1721630492134,2.88241,3469.4,3468.2,2.88333]
[1721630492355,2.88228,3469.5,3468.2,2.88333]
[1721630492564,2.88234,3469.4,3468.3,2.88324]
[1721630492937,0.530379,3469.7,3468.4,2.88317]
[1721630493148,0.3412369,3469.6,3468.4,2.88317]
[1721630493558,0.3412369,3469.6,3468.7,2.8829]
[1721630493756,0.3412369,3469.6,3468.5,2.88306]
[1721630493962,3.2234169,3469.6,3468.5,2.88306]
[1721630495344,0.3412369,3469.6,3468.6,2.883]
[1721630495546,0.32232669,3469.5,3468.7,2.88291]
[1721630495740,0.32232669,3469.5,3468.0,2.88343]
[1721630495945,3.029,3469.9,3468.0,2.88343]
[1721630495946,2.4217,3470.0,3469.2,2.8825]
[1721630496252,2.4217,3470.0,3469.3,2.88241]
[1721630496640,2.4217,3470.0,3469.0,2.88265]
[1721630496955,2.4217,3470.0,3468.9,2.88274]
[1721630497160,2.4217,3470.0,3468.7,2.88291]
[1721630497357,2.4217,3470.0,3467.9,2.88353]
[1721630497358,3.27117,3469.9,3467.6,2.88379]
[1721630497683,2.88201,3469.8,3468.0,2.88348]
[1721630497998,2.4217,3470.0,3468.6,2.88297]
[1721630498279,2.4217,3470.0,3469.5,2.88225]
[1721630498439,2.88136,3470.6,3469.5,2.88225]
[1721630498638,0.530126,3470.5,3469.5,2.88225]
[1721630498900,0.530126,3470.5,3469.5,2.88219]
[1721630499042,2.4199,3470.7,3469.8,2.88199]
[1721630499240,2.4199,3470.7,3468.6,2.88298]
[1721630499241,5.4489,3470.7,3469.2,2.88249]
[1721630499456,2.88177,3470.1,3469.0,2.88264]
[1721630499675,2.88177,3470.1,3469.1,2.88257]
[1721630499875,2.88177,3470.1,3468.9,2.88272]
[1721630500077,0.288177,3470.0,3468.8,2.88276]
[1721630500304,2.88193,3469.9,3468.7,2.88291]
[1721630500507,2.88193,3469.9,3468.1,2.3604]
[1721630500508,0.288177,3470.0,3469.1,2.88259]
[1721630500872,2.4199,3470.7,3469.5,2.88222]
[1721630501064,2.4199,3470.7,3469.6,2.88217]
[1721630501299,2.4199,3470.7,3469.9,2.88191]
[1721630501493,2.4199,3470.7,3470.0,2.88184]
[1721630501696,2.4199,3470.7,3469.9,2.8819]
[1721630501878,2.4199,3470.7,3470.3,2.88158]
[1721630502182,2.88077,3471.3,3470.0,2.88184]
[1721630502386,2.4329,3471.4,3470.4,2.8815]
[1721630502604,3.01577825,3472.8,3470.2,2.4674]